{"text_format":"3","workbook":"xlsx","n_sheets":1,"sheets":["Отчет о расходах"],"not_rendered":{"images":2,"defined_names":12},"read":"whole","date_system":"1900"}

{"sheet":"Отчет о расходах","index":0,"n_rows":24,"n_cols":13,"rows_kept":24,"merged":[[3,2,3,3],[3,5,3,6],[3,9,3,10],[4,2,4,3],[4,5,4,6],[4,9,4,10],[5,2,5,3],[5,5,5,6],[5,9,5,10],[6,2,6,3],[6,5,6,6],[6,9,6,10],[7,9,7,10]]}
[null,"ОТЧЕТ О РАСХОДАХ"]
[null,"CONTOSO, LTD"]
[null,"г. Москва, ул. Яблочная 123"]
[null,"ТЕЛЕФОН",4255550121,null,"ИМЯ","Марта Артемьева",null,null,"ЦЕЛЬ","Ежегодный семинар по продажам",null,"СТАВКА ЗА БЕНЗИН",{"v":15,"d":"15.00₽/км"}]
[null,"ФАКС",4255550122,null,"ОТДЕЛ","Продажи",null,null,"НАЧАЛО",{"$f":"IFERROR(MIN(Расходы[ДАТА]),\"\")","v":"2018-06-04"},null,"СТАВКА ЗА ПИТАНИЕ",{"v":900,"d":"900.00₽/день"}]
[null,"ЭЛ. ПОЧТА","info@contoso.com",null,"ПОЗИЦИЯ","Генеральный менеджер",null,null,"ОКОНЧАНИЕ",{"$f":"IFERROR(MAX(Расходы[ДАТА]),\"\")","v":"2018-07-04"},null,"СТАВКА ЗА ГОСТИНИЦУ",{"v":6000,"d":"6,000.00₽/ночь"}]
[null,"ВЕБ-САЙТ","www.contoso.com",null,"РУКОВОДИТЕЛЬ","Максим Измайлов",null,null,"КЕМ ПОДГОТОВЛЕНО","Марта Артемьева",null,"СТАВКА ЗА ТЕЛЕФОН",{"v":300,"d":"300.00₽/день"}]
[{"$nulls":8},"КЕМ УТВЕРЖДЕНО","Максим Измайлов",null,"ПРОЧ. СТАВКИ",{"v":1500,"d":"1,500.00₽/день"}]
[]
[null,"ДАТА","СТАТЬЯ УЧЕТА","ОПИСАНИЕ","ГОСТИНИЦА","ТРАНСПОРТ","ПИТАНИЕ","ТЕЛЕФОН","ПРОЧ.","НАЧ. ПОКАЗАНИЯ \nОДОМЕТРА","КОН. ПОКАЗАНИЯ \nОДОМЕТРА","РАССТОЯНИЕ \nИТОГО","ИТОГО "]
[null,{"$f":"TODAY()","v":"2018-06-04"},"Продажи","Расстояние",{"$nulls":4},{"v":1500,"d":"1,500.00 ₽"},{"v":11378.5,"d":"11,378.5км"},{"v":11456.2,"d":"11,456.2км"},{"$f":"IF(COUNTA(Расходы[[#This Row],[НАЧ. ПОКАЗАНИЯ \nОДОМЕТРА]:[КОН. ПОКАЗАНИЯ \nОДОМЕТРА]])=2,(Расходы[[#This Row],[КОН. ПОКАЗАНИЯ \nОДОМЕТРА]]-Расходы[[#This Row],[НАЧ. ПОКАЗАНИЯ \nОДОМЕТРА]])*СтавкаЗаБензин,\"\")","v":{"v":1165.500000000011,"d":"1,165.50 ₽"}},{"$f":"IF(COUNTA(Расходы[[#This Row],[ДАТА]:[КОН. ПОКАЗАНИЯ \nОДОМЕТРА]])=0,\"\",SUM(Расходы[[#This Row],[ГОСТИНИЦА]:[ТРАНСПОРТ]],Расходы[[#This Row],[ПИТАНИЕ]:[ПРОЧ.]],((Расходы[[#This Row],[КОН. ПОКАЗАНИЯ \nОДОМЕТРА]]-Расходы[[#This Row],[НАЧ. ПОКАЗАНИЯ \nОДОМЕТРА]])*(СтавкаЗаБензин))))","v":{"v":2665.500000000011,"d":"2,665.50 ₽"}}]
[null,{"$f":"TODAY()+30","v":"2018-07-04"},"Продажи","Конференция",{"v":13350,"d":"13,350.00 ₽"},{"v":6750,"d":"6,750.00 ₽"},{"v":600,"d":"600.00 ₽"},null,{"v":150,"d":"150.00 ₽"},{"v":11500,"d":"11,500.0км"},{"v":11560,"d":"11,560.0км"},{"$f":"IF(COUNTA(Расходы[[#This Row],[НАЧ. ПОКАЗАНИЯ \nОДОМЕТРА]:[КОН. ПОКАЗАНИЯ \nОДОМЕТРА]])=2,(Расходы[[#This Row],[КОН. ПОКАЗАНИЯ \nОДОМЕТРА]]-Расходы[[#This Row],[НАЧ. ПОКАЗАНИЯ \nОДОМЕТРА]])*СтавкаЗаБензин,\"\")","v":{"v":900,"d":"900.00 ₽"}},{"$f":"IF(COUNTA(Расходы[[#This Row],[ДАТА]:[КОН. ПОКАЗАНИЯ \nОДОМЕТРА]])=0,\"\",SUM(Расходы[[#This Row],[ГОСТИНИЦА]:[ТРАНСПОРТ]],Расходы[[#This Row],[ПИТАНИЕ]:[ПРОЧ.]],((Расходы[[#This Row],[КОН. ПОКАЗАНИЯ \nОДОМЕТРА]]-Расходы[[#This Row],[НАЧ. ПОКАЗАНИЯ \nОДОМЕТРА]])*(СтавкаЗаБензин))))","v":{"v":21750,"d":"21,750.00 ₽"}}]
[{"$nulls":11},{"$f":"IF(COUNTA(Расходы[[#This Row],[НАЧ. ПОКАЗАНИЯ \nОДОМЕТРА]:[КОН. ПОКАЗАНИЯ \nОДОМЕТРА]])=2,(Расходы[[#This Row],[КОН. ПОКАЗАНИЯ \nОДОМЕТРА]]-Расходы[[#This Row],[НАЧ. ПОКАЗАНИЯ \nОДОМЕТРА]])*СтавкаЗаБензин,\"\")","v":""},{"$f":"IF(COUNTA(Расходы[[#This Row],[ДАТА]:[КОН. ПОКАЗАНИЯ \nОДОМЕТРА]])=0,\"\",SUM(Расходы[[#This Row],[ГОСТИНИЦА]:[ТРАНСПОРТ]],Расходы[[#This Row],[ПИТАНИЕ]:[ПРОЧ.]],((Расходы[[#This Row],[КОН. ПОКАЗАНИЯ \nОДОМЕТРА]]-Расходы[[#This Row],[НАЧ. ПОКАЗАНИЯ \nОДОМЕТРА]])*(СтавкаЗаБензин))))","v":""}]
[{"$nulls":11},{"$f":"IF(COUNTA(Расходы[[#This Row],[НАЧ. ПОКАЗАНИЯ \nОДОМЕТРА]:[КОН. ПОКАЗАНИЯ \nОДОМЕТРА]])=2,(Расходы[[#This Row],[КОН. ПОКАЗАНИЯ \nОДОМЕТРА]]-Расходы[[#This Row],[НАЧ. ПОКАЗАНИЯ \nОДОМЕТРА]])*СтавкаЗаБензин,\"\")","v":""},{"$f":"IF(COUNTA(Расходы[[#This Row],[ДАТА]:[КОН. ПОКАЗАНИЯ \nОДОМЕТРА]])=0,\"\",SUM(Расходы[[#This Row],[ГОСТИНИЦА]:[ТРАНСПОРТ]],Расходы[[#This Row],[ПИТАНИЕ]:[ПРОЧ.]],((Расходы[[#This Row],[КОН. ПОКАЗАНИЯ \nОДОМЕТРА]]-Расходы[[#This Row],[НАЧ. ПОКАЗАНИЯ \nОДОМЕТРА]])*(СтавкаЗаБензин))))","v":""}]
[{"$nulls":11},{"$f":"IF(COUNTA(Расходы[[#This Row],[НАЧ. ПОКАЗАНИЯ \nОДОМЕТРА]:[КОН. ПОКАЗАНИЯ \nОДОМЕТРА]])=2,(Расходы[[#This Row],[КОН. ПОКАЗАНИЯ \nОДОМЕТРА]]-Расходы[[#This Row],[НАЧ. ПОКАЗАНИЯ \nОДОМЕТРА]])*СтавкаЗаБензин,\"\")","v":""},{"$f":"IF(COUNTA(Расходы[[#This Row],[ДАТА]:[КОН. ПОКАЗАНИЯ \nОДОМЕТРА]])=0,\"\",SUM(Расходы[[#This Row],[ГОСТИНИЦА]:[ТРАНСПОРТ]],Расходы[[#This Row],[ПИТАНИЕ]:[ПРОЧ.]],((Расходы[[#This Row],[КОН. ПОКАЗАНИЯ \nОДОМЕТРА]]-Расходы[[#This Row],[НАЧ. ПОКАЗАНИЯ \nОДОМЕТРА]])*(СтавкаЗаБензин))))","v":""}]
[{"$nulls":11},{"$f":"IF(COUNTA(Расходы[[#This Row],[НАЧ. ПОКАЗАНИЯ \nОДОМЕТРА]:[КОН. ПОКАЗАНИЯ \nОДОМЕТРА]])=2,(Расходы[[#This Row],[КОН. ПОКАЗАНИЯ \nОДОМЕТРА]]-Расходы[[#This Row],[НАЧ. ПОКАЗАНИЯ \nОДОМЕТРА]])*СтавкаЗаБензин,\"\")","v":""},{"$f":"IF(COUNTA(Расходы[[#This Row],[ДАТА]:[КОН. ПОКАЗАНИЯ \nОДОМЕТРА]])=0,\"\",SUM(Расходы[[#This Row],[ГОСТИНИЦА]:[ТРАНСПОРТ]],Расходы[[#This Row],[ПИТАНИЕ]:[ПРОЧ.]],((Расходы[[#This Row],[КОН. ПОКАЗАНИЯ \nОДОМЕТРА]]-Расходы[[#This Row],[НАЧ. ПОКАЗАНИЯ \nОДОМЕТРА]])*(СтавкаЗаБензин))))","v":""}]
[{"$nulls":11},{"$f":"IF(COUNTA(Расходы[[#This Row],[НАЧ. ПОКАЗАНИЯ \nОДОМЕТРА]:[КОН. ПОКАЗАНИЯ \nОДОМЕТРА]])=2,(Расходы[[#This Row],[КОН. ПОКАЗАНИЯ \nОДОМЕТРА]]-Расходы[[#This Row],[НАЧ. ПОКАЗАНИЯ \nОДОМЕТРА]])*СтавкаЗаБензин,\"\")","v":""},{"$f":"IF(COUNTA(Расходы[[#This Row],[ДАТА]:[КОН. ПОКАЗАНИЯ \nОДОМЕТРА]])=0,\"\",SUM(Расходы[[#This Row],[ГОСТИНИЦА]:[ТРАНСПОРТ]],Расходы[[#This Row],[ПИТАНИЕ]:[ПРОЧ.]],((Расходы[[#This Row],[КОН. ПОКАЗАНИЯ \nОДОМЕТРА]]-Расходы[[#This Row],[НАЧ. ПОКАЗАНИЯ \nОДОМЕТРА]])*(СтавкаЗаБензин))))","v":""}]
[{"$nulls":11},{"$f":"IF(COUNTA(Расходы[[#This Row],[НАЧ. ПОКАЗАНИЯ \nОДОМЕТРА]:[КОН. ПОКАЗАНИЯ \nОДОМЕТРА]])=2,(Расходы[[#This Row],[КОН. ПОКАЗАНИЯ \nОДОМЕТРА]]-Расходы[[#This Row],[НАЧ. ПОКАЗАНИЯ \nОДОМЕТРА]])*СтавкаЗаБензин,\"\")","v":""},{"$f":"IF(COUNTA(Расходы[[#This Row],[ДАТА]:[КОН. ПОКАЗАНИЯ \nОДОМЕТРА]])=0,\"\",SUM(Расходы[[#This Row],[ГОСТИНИЦА]:[ТРАНСПОРТ]],Расходы[[#This Row],[ПИТАНИЕ]:[ПРОЧ.]],((Расходы[[#This Row],[КОН. ПОКАЗАНИЯ \nОДОМЕТРА]]-Расходы[[#This Row],[НАЧ. ПОКАЗАНИЯ \nОДОМЕТРА]])*(СтавкаЗаБензин))))","v":""}]
[{"$nulls":11},{"$f":"IF(COUNTA(Расходы[[#This Row],[НАЧ. ПОКАЗАНИЯ \nОДОМЕТРА]:[КОН. ПОКАЗАНИЯ \nОДОМЕТРА]])=2,(Расходы[[#This Row],[КОН. ПОКАЗАНИЯ \nОДОМЕТРА]]-Расходы[[#This Row],[НАЧ. ПОКАЗАНИЯ \nОДОМЕТРА]])*СтавкаЗаБензин,\"\")","v":""},{"$f":"IF(COUNTA(Расходы[[#This Row],[ДАТА]:[КОН. ПОКАЗАНИЯ \nОДОМЕТРА]])=0,\"\",SUM(Расходы[[#This Row],[ГОСТИНИЦА]:[ТРАНСПОРТ]],Расходы[[#This Row],[ПИТАНИЕ]:[ПРОЧ.]],((Расходы[[#This Row],[КОН. ПОКАЗАНИЯ \nОДОМЕТРА]]-Расходы[[#This Row],[НАЧ. ПОКАЗАНИЯ \nОДОМЕТРА]])*(СтавкаЗаБензин))))","v":""}]
[{"$nulls":11},{"$f":"IF(COUNTA(Расходы[[#This Row],[НАЧ. ПОКАЗАНИЯ \nОДОМЕТРА]:[КОН. ПОКАЗАНИЯ \nОДОМЕТРА]])=2,(Расходы[[#This Row],[КОН. ПОКАЗАНИЯ \nОДОМЕТРА]]-Расходы[[#This Row],[НАЧ. ПОКАЗАНИЯ \nОДОМЕТРА]])*СтавкаЗаБензин,\"\")","v":""},{"$f":"IF(COUNTA(Расходы[[#This Row],[ДАТА]:[КОН. ПОКАЗАНИЯ \nОДОМЕТРА]])=0,\"\",SUM(Расходы[[#This Row],[ГОСТИНИЦА]:[ТРАНСПОРТ]],Расходы[[#This Row],[ПИТАНИЕ]:[ПРОЧ.]],((Расходы[[#This Row],[КОН. ПОКАЗАНИЯ \nОДОМЕТРА]]-Расходы[[#This Row],[НАЧ. ПОКАЗАНИЯ \nОДОМЕТРА]])*(СтавкаЗаБензин))))","v":""}]
[{"$nulls":11},{"$f":"IF(COUNTA(Расходы[[#This Row],[НАЧ. ПОКАЗАНИЯ \nОДОМЕТРА]:[КОН. ПОКАЗАНИЯ \nОДОМЕТРА]])=2,(Расходы[[#This Row],[КОН. ПОКАЗАНИЯ \nОДОМЕТРА]]-Расходы[[#This Row],[НАЧ. ПОКАЗАНИЯ \nОДОМЕТРА]])*СтавкаЗаБензин,\"\")","v":""},{"$f":"IF(COUNTA(Расходы[[#This Row],[ДАТА]:[КОН. ПОКАЗАНИЯ \nОДОМЕТРА]])=0,\"\",SUM(Расходы[[#This Row],[ГОСТИНИЦА]:[ТРАНСПОРТ]],Расходы[[#This Row],[ПИТАНИЕ]:[ПРОЧ.]],((Расходы[[#This Row],[КОН. ПОКАЗАНИЯ \nОДОМЕТРА]]-Расходы[[#This Row],[НАЧ. ПОКАЗАНИЯ \nОДОМЕТРА]])*(СтавкаЗаБензин))))","v":""}]
[null,"ИТОГИ",null,null,{"$f":"SUBTOTAL(109,Расходы[ГОСТИНИЦА])","v":{"v":13350,"d":"13,350.00 ₽"}},{"$f":"SUBTOTAL(109,Расходы[ТРАНСПОРТ])","v":{"v":6750,"d":"6,750.00 ₽"}},{"$f":"SUBTOTAL(109,Расходы[ПИТАНИЕ])","v":{"v":600,"d":"600.00 ₽"}},{"$f":"SUBTOTAL(109,Расходы[ТЕЛЕФОН])","v":0},{"$f":"SUBTOTAL(109,Расходы[ПРОЧ.])","v":{"v":1650,"d":"1,650.00 ₽"}},{"$nulls":3},{"$f":"SUBTOTAL(109,Расходы[[ИТОГО ]])","v":{"v":24415.50000000001,"d":"24,415.50 ₽"}}]
[{"$nulls":11},"АВАНСЫ",{"v":0,"d":"0.00 ₽"}]
[{"$nulls":11},"ИТОГО",{"$f":"Расходы[[#Totals],[ИТОГО ]]-Авансы","v":{"v":24415.50000000001,"d":"24,415.50 ₽"}}]